[Event "*** Titled Tuesday Blitz"]
[Site "Chess.com"]
[Date "2021.03.30"]
[Round "5"]
[White "Oligan22"]
[Black "katchesskat"]
[Result "1-0"]
[WhiteElo "2503"]
[BlackElo "2319"]
[TimeControl "180+1"]
[EndTime "10:55:46 PDT"]
[Termination "Oligan22 won on time"]

1. e4 {[%clk 0:03:00.9]} 1... c5 {[%clk 0:02:57.2]} 2. Nf3 {[%clk 0:03:01.3]}
2... e6 {[%clk 0:02:56.8]} 3. d4 {[%clk 0:03:01.6]} 3... cxd4 {[%clk 0:02:56.1]}
4. Nxd4 {[%clk 0:03:02.5]} 4... a6 {[%clk 0:02:56.2]} 5. c4 {[%clk 0:03:02.5]}
5... Qc7 {[%clk 0:02:56]} 6. Nc3 {[%clk 0:03:03]} 6... b6 {[%clk 0:02:55.1]} 7.
Bd3 {[%clk 0:03:01.3]} 7... Bb7 {[%clk 0:02:54.1]} 8. Be3 {[%clk 0:02:57.1]}
8... d6 {[%clk 0:02:53.7]} 9. Rc1 {[%clk 0:02:57.2]} 9... Nd7 {[%clk 0:02:53.3]}
10. O-O {[%clk 0:02:56.8]} 10... Be7 {[%clk 0:02:53.4]} 11. f3 {[%clk
0:02:52.4]} 11... Ngf6 {[%clk 0:02:52.2]} 12. Qd2 {[%clk 0:02:52.8]} 12... O-O
{[%clk 0:02:51.7]} 13. Qf2 {[%clk 0:02:52.5]} 13... Rac8 {[%clk 0:02:51.1]} 14.
Rfd1 {[%clk 0:02:52.4]} 14... Qb8 {[%clk 0:02:50]} 15. Bf1 {[%clk 0:02:52]}
15... Rfe8 {[%clk 0:02:49.5]} 16. b4 {[%clk 0:02:47]} 16... Bd8 {[%clk
0:02:43.7]} 17. Nb3 {[%clk 0:02:45.7]} 17... Bc7 {[%clk 0:02:38.5]} 18. g3
{[%clk 0:02:37.1]} 18... h5 {[%clk 0:02:36.3]} 19. Na4 {[%clk 0:02:33.4]} 19...
Bc6 {[%clk 0:02:33.3]} 20. b5 {[%clk 0:02:33.4]} 20... axb5 {[%clk 0:02:21.4]}
21. cxb5 {[%clk 0:02:34.3]} 21... Ba8 {[%clk 0:02:21.5]} 22. Nd4 {[%clk
0:02:27]} 22... Nc5 {[%clk 0:02:20.8]} 23. Nc3 {[%clk 0:02:22.8]} 23... d5
{[%clk 0:02:17.5]} 24. exd5 {[%clk 0:02:07.9]} 24... Nxd5 {[%clk 0:02:08.8]} 25.
Nxd5 {[%clk 0:02:07.7]} 25... Bxd5 {[%clk 0:02:07.1]} 26. Nc6 {[%clk 0:02:05.1]}
26... Qa8 {[%clk 0:02:00.1]} 27. Rc2 {[%clk 0:01:54.5]} 27... h4 {[%clk
0:01:48.7]} 28. gxh4 {[%clk 0:01:14.5]} 28... Qa4 {[%clk 0:01:39.6]} 29. Rd4
{[%clk 0:01:07.9]} 29... Qa3 {[%clk 0:01:26.8]} 30. Rg4 {[%clk 0:01:04.9]} 30...
Bd6 {[%clk 0:00:24.5]} 31. h5 {[%clk 0:01:03.8]} 31... Kh8 {[%clk 0:00:21.4]}
32. h6 {[%clk 0:01:00.3]} 32... g6 {[%clk 0:00:15.7]} 33. Nb4 {[%clk 0:00:54.4]}
33... Kh7 {[%clk 0:00:14.6]} 34. Nxd5 {[%clk 0:00:45]} 34... exd5 {[%clk
0:00:15.5]} 35. Bd4 {[%clk 0:00:45.7]} 35... Nd3 {[%clk 0:00:12.5]} 36. Bxd3
{[%clk 0:00:44]} 36... Qxd3 {[%clk 0:00:11.3]} 37. Rd2 {[%clk 0:00:39.7]} 37...
Rc1+ {[%clk 0:00:10.6]} 38. Kg2 {[%clk 0:00:40.1]} 38... Qf5 {[%clk 0:00:09.8]}
39. Be3 {[%clk 0:00:31.1]} 39... Qh5 {[%clk 0:00:05.6]} 40. Rh4 {[%clk
0:00:28.3]} 40... Qf5 {[%clk 0:00:05.1]} 41. Rhd4 {[%clk 0:00:24.9]} 41... Re1
{[%clk 0:00:04.3]} 42. Rxd5 {[%clk 0:00:21.4]} 1-0

[Event "*** Titled Tuesday Blitz"]
[Site "Chess.com"]
[Date "2021.03.30"]
[Round "5"]
[White "CheckThis4"]
[Black "Onischuk_V"]
[Result "0-1"]
[WhiteElo "2617"]
[BlackElo "2887"]
[TimeControl "180+1"]
[EndTime "10:55:47 PDT"]
[Termination "Onischuk_V won by resignation"]

1. d4 {[%clk 0:03:00.9]} 1... Nf6 {[%clk 0:02:59.9]} 2. Bg5 {[%clk 0:03:00.6]}
2... e6 {[%clk 0:02:58.6]} 3. e4 {[%clk 0:03:00.1]} 3... h6 {[%clk 0:02:58.5]}
4. Bxf6 {[%clk 0:03:00.4]} 4... Qxf6 {[%clk 0:02:58.5]} 5. c3 {[%clk 0:03:01.1]}
5... d6 {[%clk 0:02:58.4]} 6. Bd3 {[%clk 0:03:01.1]} 6... e5 {[%clk 0:02:58]} 7.
Ne2 {[%clk 0:03:01.1]} 7... g6 {[%clk 0:02:42.9]} 8. O-O {[%clk 0:03:00.5]} 8...
Bg7 {[%clk 0:02:42.9]} 9. f4 {[%clk 0:03:00.5]} 9... Qe7 {[%clk 0:02:42.8]} 10.
f5 {[%clk 0:03:00.7]} 10... Nd7 {[%clk 0:02:38.4]} 11. fxg6 {[%clk 0:02:47]}
11... fxg6 {[%clk 0:02:38.2]} 12. Qb3 {[%clk 0:02:47]} 12... Nf6 {[%clk
0:02:32.8]} 13. Na3 {[%clk 0:02:43]} 13... c6 {[%clk 0:02:28.5]} 14. Nc4 {[%clk
0:02:41.1]} 14... h5 {[%clk 0:01:52.8]} 15. Rae1 {[%clk 0:02:32.5]} 15... b6
{[%clk 0:01:43.1]} 16. d5 {[%clk 0:02:15.9]} 16... c5 {[%clk 0:01:36.5]} 17. Ne3
{[%clk 0:01:51.1]} 17... O-O {[%clk 0:01:35.9]} 18. Qc2 {[%clk 0:01:32.6]} 18...
Bh6 {[%clk 0:01:35.5]} 19. Ng3 {[%clk 0:01:30.8]} 19... Bd7 {[%clk 0:01:30.6]}
20. a4 {[%clk 0:01:29.4]} 20... Rf7 {[%clk 0:01:28.8]} 21. Bb5 {[%clk
0:01:28.9]} 21... Raf8 {[%clk 0:01:22.6]} 22. Nc4 {[%clk 0:01:27]} 22... Bc8
{[%clk 0:01:20.6]} 23. h3 {[%clk 0:01:22.8]} 23... h4 {[%clk 0:01:18.3]} 24. Ne2
{[%clk 0:01:18.9]} 24... Nh5 {[%clk 0:01:10.5]} 25. Qd1 {[%clk 0:01:06.3]} 25...
Bf4 {[%clk 0:01:01.8]} 26. Bc6 {[%clk 0:01:00.7]} 26... Rf6 {[%clk 0:00:54]} 27.
b4 {[%clk 0:00:59]} 27... Qh7 {[%clk 0:00:51.2]} 28. bxc5 {[%clk 0:00:55.5]}
28... bxc5 {[%clk 0:00:51]} 29. Qd3 {[%clk 0:00:50.4]} 29... Qh6 {[%clk
0:00:48.7]} 30. Rb1 {[%clk 0:00:48.1]} 30... Qg5 {[%clk 0:00:47.5]} 31. Rf3
{[%clk 0:00:42.5]} 31... Bg3 {[%clk 0:00:43]} 32. Rbf1 {[%clk 0:00:40.8]} 32...
Bf4 {[%clk 0:00:30.5]} 33. Rb1 {[%clk 0:00:40]} 33... Ng3 {[%clk 0:00:28.4]} 34.
Nxg3 {[%clk 0:00:39]} 34... Bxg3 {[%clk 0:00:28.5]} 35. Rbf1 {[%clk 0:00:38.1]}
35... Bf4 {[%clk 0:00:27.4]} 36. Rb1 {[%clk 0:00:35.4]} 36... Bh2+ {[%clk
0:00:27.6]} 37. Kxh2 {[%clk 0:00:32.9]} 37... Rxf3 {[%clk 0:00:27.7]} 38. gxf3
{[%clk 0:00:29.9]} 38... Qg3+ {[%clk 0:00:28.1]} 39. Kh1 {[%clk 0:00:30.3]}
39... Qxh3+ {[%clk 0:00:28.4]} 40. Kg1 {[%clk 0:00:30.8]} 40... Qg3+ {[%clk
0:00:29.1]} 41. Kh1 {[%clk 0:00:31.2]} 41... Qh3+ {[%clk 0:00:28.5]} 42. Kg1
{[%clk 0:00:31]} 42... Rxf3 {[%clk 0:00:29.2]} 43. Qe2 {[%clk 0:00:24.5]} 43...
Rg3+ {[%clk 0:00:28.9]} 44. Kf2 {[%clk 0:00:23.1]} 44... Rg2+ {[%clk 0:00:28.5]}
45. Ke1 {[%clk 0:00:23]} 45... Qxc3+ {[%clk 0:00:27]} 46. Nd2 {[%clk 0:00:21.5]}
46... Rxe2+ {[%clk 0:00:26.6]} 47. Kxe2 {[%clk 0:00:22.4]} 47... Bg4+ {[%clk
0:00:26.9]} 48. Ke1 {[%clk 0:00:16.9]} 48... Qe3+ {[%clk 0:00:26.7]} 49. Kf1
{[%clk 0:00:17.4]} 49... Qxd2 {[%clk 0:00:26.7]} 50. Rb8+ {[%clk 0:00:16.9]}
50... Kg7 {[%clk 0:00:26.5]} 51. Rb7+ {[%clk 0:00:16.6]} 51... Kh6 {[%clk
0:00:26.8]} 0-1

[Event "*** Titled Tuesday Blitz"]
[Site "Chess.com"]
[Date "2021.03.30"]
[Round "5"]
[White "lukazz029"]
[Black "2nd_life"]
[Result "0-1"]
[WhiteElo "2164"]
[BlackElo "2399"]
[TimeControl "180+1"]
[EndTime "10:55:49 PDT"]
[Termination "2nd_life won by resignation"]

1. e4 {[%clk 0:01:58.1]} 1... e5 {[%clk 0:02:58.6]} 2. Nf3 {[%clk 0:01:57.4]}
2... Nc6 {[%clk 0:02:58.9]} 3. Bb5 {[%clk 0:01:56.4]} 3... a6 {[%clk 0:02:58.9]}
4. Ba4 {[%clk 0:01:55.9]} 4... Nf6 {[%clk 0:02:59.2]} 5. O-O {[%clk 0:01:54.2]}
5... Be7 {[%clk 0:02:59.5]} 6. d3 {[%clk 0:01:53]} 6... d6 {[%clk 0:02:55.6]} 7.
h3 {[%clk 0:01:52.3]} 7... O-O {[%clk 0:02:55.1]} 8. c3 {[%clk 0:01:52.4]} 8...
h6 {[%clk 0:02:49.9]} 9. Nbd2 {[%clk 0:01:51.6]} 9... Re8 {[%clk 0:02:38]} 10.
Re1 {[%clk 0:01:50.9]} 10... Bf8 {[%clk 0:02:37.8]} 11. Nf1 {[%clk 0:01:50.9]}
11... g6 {[%clk 0:02:35.8]} 12. Ng3 {[%clk 0:01:50.9]} 12... Bg7 {[%clk
0:02:34.2]} 13. Nh2 {[%clk 0:01:50.7]} 13... b5 {[%clk 0:02:22.6]} 14. Bb3
{[%clk 0:01:49.7]} 14... Be6 {[%clk 0:02:21.5]} 15. Bc2 {[%clk 0:01:47.4]} 15...
d5 {[%clk 0:02:19.4]} 16. Qe2 {[%clk 0:01:46.5]} 16... d4 {[%clk 0:02:13.5]} 17.
Ng4 {[%clk 0:01:45.4]} 17... Nxg4 {[%clk 0:02:12.2]} 18. hxg4 {[%clk 0:01:45.3]}
18... Qd7 {[%clk 0:02:08.1]} 19. f3 {[%clk 0:01:44.9]} 19... dxc3 {[%clk
0:02:06.2]} 20. bxc3 {[%clk 0:01:45]} 20... b4 {[%clk 0:02:06.4]} 21. Bd2 {[%clk
0:01:41.1]} 21... bxc3 {[%clk 0:02:03.4]} 22. Bxc3 {[%clk 0:01:42]} 22... Nd4
{[%clk 0:02:03.3]} 23. Bxd4 {[%clk 0:01:41.6]} 23... Qxd4+ {[%clk 0:02:02.8]}
24. Qf2 {[%clk 0:01:42]} 24... c5 {[%clk 0:01:57.5]} 25. Qxd4 {[%clk 0:01:41.5]}
25... cxd4 {[%clk 0:01:57.4]} 26. Rab1 {[%clk 0:01:40.6]} 26... Rec8 {[%clk
0:01:54.2]} 27. Bb3 {[%clk 0:01:39.7]} 27... Bxb3 {[%clk 0:01:50.1]} 28. Rxb3
{[%clk 0:01:40.6]} 28... Rc2 {[%clk 0:01:50]} 29. Re2 {[%clk 0:01:40.4]} 29...
Rac8 {[%clk 0:01:48.7]} 30. Ra3 {[%clk 0:01:38]} 30... Rc1+ {[%clk 0:01:36.8]}
31. Kh2 {[%clk 0:01:36.4]} 31... R8c6 {[%clk 0:01:20.9]} 32. Rb2 {[%clk
0:01:35.3]} 32... R1c3 {[%clk 0:01:20.6]} 33. Rbb3 {[%clk 0:01:34.7]} 33... Bf8
{[%clk 0:01:19]} 34. Ra5 {[%clk 0:01:33.9]} 34... Rxb3 {[%clk 0:01:06]} 35. axb3
{[%clk 0:01:33]} 35... f6 {[%clk 0:01:06.3]} 36. Ne2 {[%clk 0:01:15.6]} 36...
Bb4 {[%clk 0:01:01.1]} 37. Ra4 {[%clk 0:01:14.1]} 37... a5 {[%clk 0:00:59.8]}
38. Ra2 {[%clk 0:01:13.1]} 38... Kf7 {[%clk 0:00:56.5]} 39. Kg3 {[%clk
0:01:10.3]} 39... Ke6 {[%clk 0:00:56.5]} 40. Kf2 {[%clk 0:01:10.1]} 40... Kd6
{[%clk 0:00:56.2]} 41. g3 {[%clk 0:01:03.5]} 41... Kc7 {[%clk 0:00:55.2]} 42. f4
{[%clk 0:01:03.6]} 42... Kb6 {[%clk 0:00:53.4]} 43. Kf3 {[%clk 0:01:02.9]} 43...
Kb5 {[%clk 0:00:53.3]} 44. f5 {[%clk 0:01:02.3]} 44... g5 {[%clk 0:00:52.4]} 45.
Kf2 {[%clk 0:00:58.6]} 45... Bc3 {[%clk 0:00:51.2]} 46. Ra4 {[%clk 0:00:54.6]}
46... Bd2 {[%clk 0:00:49.4]} 47. Rc4 {[%clk 0:00:50.4]} 47... Rxc4 {[%clk
0:00:45.2]} 48. dxc4+ {[%clk 0:00:51.3]} 48... Kb4 {[%clk 0:00:44.3]} 49. Ng1
{[%clk 0:00:47.4]} 49... Be3+ {[%clk 0:00:42.3]} 50. Kg2 {[%clk 0:00:46.6]}
50... d3 {[%clk 0:00:36.1]} 51. Nf3 {[%clk 0:00:42.2]} 51... Kxb3 {[%clk
0:00:34.9]} 52. Kf1 {[%clk 0:00:27.7]} 52... Kxc4 {[%clk 0:00:34]} 53. Ke1
{[%clk 0:00:24.7]} 53... a4 {[%clk 0:00:34]} 54. Kd1 {[%clk 0:00:21.7]} 54... a3
{[%clk 0:00:34.2]} 55. Nxe5+ {[%clk 0:00:20.6]} 55... fxe5 {[%clk 0:00:33.8]}
56. f6 {[%clk 0:00:20.4]} 56... a2 {[%clk 0:00:34.2]} 0-1

[Event "*** Titled Tuesday Blitz"]
[Site "Chess.com"]
[Date "2021.03.30"]
[Round "5"]
[White "andy_rekt"]
[Black "Klavdia_Nik"]
[Result "1-0"]
[WhiteElo "2303"]
[BlackElo "2024"]
[TimeControl "180+1"]
[EndTime "10:55:49 PDT"]
[Termination "andy_rekt won on time"]

1. d4 {[%clk 0:03:00.9]} 1... Nf6 {[%clk 0:02:51.8]} 2. c4 {[%clk 0:02:58.9]}
2... c5 {[%clk 0:02:50.8]} 3. d5 {[%clk 0:02:58.8]} 3... b5 {[%clk 0:02:49.7]}
4. cxb5 {[%clk 0:02:48.9]} 4... a6 {[%clk 0:02:47.7]} 5. bxa6 {[%clk 0:02:49.8]}
5... Bxa6 {[%clk 0:02:46.4]} 6. Nc3 {[%clk 0:02:49.4]} 6... d6 {[%clk
0:02:44.1]} 7. e4 {[%clk 0:02:48.8]} 7... Bxf1 {[%clk 0:02:43.3]} 8. Kxf1 {[%clk
0:02:49.7]} 8... g6 {[%clk 0:02:43.7]} 9. g3 {[%clk 0:02:50.1]} 9... Bg7 {[%clk
0:02:44.1]} 10. Kg2 {[%clk 0:02:49.3]} 10... O-O {[%clk 0:02:44.7]} 11. Nf3
{[%clk 0:02:49.8]} 11... Ng4 {[%clk 0:02:43.2]} 12. h3 {[%clk 0:02:48.3]} 12...
Ne5 {[%clk 0:02:43.1]} 13. Nxe5 {[%clk 0:02:48.4]} 13... Bxe5 {[%clk 0:02:43.7]}
14. f4 {[%clk 0:02:45]} 14... Bg7 {[%clk 0:02:41.4]} 15. h4 {[%clk 0:02:41.7]}
15... Qa5 {[%clk 0:02:09.4]} 16. Bd2 {[%clk 0:02:34.3]} 16... Qb4 {[%clk
0:02:03]} 17. Qc2 {[%clk 0:02:31.9]} 17... Nd7 {[%clk 0:01:52.3]} 18. h5 {[%clk
0:02:31.5]} 18... Rfb8 {[%clk 0:01:48.7]} 19. b3 {[%clk 0:02:24.2]} 19... Nf6
{[%clk 0:01:38.1]} 20. hxg6 {[%clk 0:02:18.9]} 20... hxg6 {[%clk 0:01:37.1]} 21.
Kf3 {[%clk 0:01:58]} 21... Qb7 {[%clk 0:01:26]} 22. Be3 {[%clk 0:01:28.8]} 22...
Qc8 {[%clk 0:01:18.1]} 23. Rh4 {[%clk 0:01:23.7]} 23... Rb4 {[%clk 0:01:13.4]}
24. Rah1 {[%clk 0:01:14.4]} 24... Qb7 {[%clk 0:00:56.6]} 25. Qd2 {[%clk
0:01:04]} 25... Nd7 {[%clk 0:00:32.2]} 26. Qh2 {[%clk 0:00:54.8]} 26... f6
{[%clk 0:00:22]} 27. Qh3 {[%clk 0:00:43.3]} 27... Nf8 {[%clk 0:00:19.4]} 28. Rc1
{[%clk 0:00:29.6]} 28... f5 {[%clk 0:00:15.1]} 29. exf5 {[%clk 0:00:28.2]} 29...
Bxc3 {[%clk 0:00:14.9]} 30. Rxc3 {[%clk 0:00:21.5]} 30... Qxd5+ {[%clk
0:00:15.3]} 31. Kf2 {[%clk 0:00:11.4]} 31... Rxa2+ {[%clk 0:00:15.7]} 32. Ke1
{[%clk 0:00:09.5]} 32... Qe4 {[%clk 0:00:06]} 33. Rh8+ {[%clk 0:00:08.8]} 33...
Kf7 {[%clk 0:00:06.1]} 34. Qh7+ {[%clk 0:00:08.8]} 34... Ke8 {[%clk 0:00:05.7]}
35. Qxg6+ {[%clk 0:00:09.1]} 35... Kd7 {[%clk 0:00:05.2]} 36. Rxf8 {[%clk
0:00:07]} 36... Qb1+ {[%clk 0:00:01.3]} 37. Rc1 {[%clk 0:00:06.1]} 1-0

[Event "*** Titled Tuesday Blitz"]
[Site "Chess.com"]
[Date "2021.03.30"]
[Round "5"]
[White "Kapibara_Warri0r"]
[Black "Sueetin"]
[Result "0-1"]
[WhiteElo "2242"]
[BlackElo "2427"]
[TimeControl "180+1"]
[EndTime "10:55:51 PDT"]
[Termination "Sueetin won on time"]

1. c4 {[%clk 0:03:00.9]} 1... e5 {[%clk 0:02:59.1]} 2. Nc3 {[%clk 0:03:00.6]}
2... Bb4 {[%clk 0:02:58.9]} 3. Nd5 {[%clk 0:02:58.7]} 3... a5 {[%clk 0:02:58.3]}
4. a3 {[%clk 0:02:58]} 4... Bc5 {[%clk 0:02:57.7]} 5. e3 {[%clk 0:02:55.4]} 5...
c6 {[%clk 0:02:54]} 6. d4 {[%clk 0:02:50.2]} 6... Bd6 {[%clk 0:02:36.5]} 7. Nc3
{[%clk 0:02:41.6]} 7... Nf6 {[%clk 0:02:27.1]} 8. c5 {[%clk 0:02:37.4]} 8... Bc7
{[%clk 0:02:26.6]} 9. Bc4 {[%clk 0:02:24.8]} 9... O-O {[%clk 0:02:23.7]} 10.
Nge2 {[%clk 0:02:24.6]} 10... exd4 {[%clk 0:02:14.3]} 11. exd4 {[%clk
0:02:25.5]} 11... d5 {[%clk 0:02:14.5]} 12. Bd3 {[%clk 0:02:22.6]} 12... Bg4
{[%clk 0:02:13.2]} 13. O-O {[%clk 0:02:05.7]} 13... h6 {[%clk 0:02:07.6]} 14. f3
{[%clk 0:02:03.9]} 14... Bh5 {[%clk 0:02:05.7]} 15. Bf4 {[%clk 0:02:04.5]} 15...
Nbd7 {[%clk 0:02:04.5]} 16. Qe1 {[%clk 0:01:56.9]} 16... Bg6 {[%clk 0:01:57.1]}
17. Bxg6 {[%clk 0:01:52.2]} 17... fxg6 {[%clk 0:01:58]} 18. Qg3 {[%clk 0:01:48]}
18... Nh5 {[%clk 0:01:51.6]} 19. Bxc7 {[%clk 0:01:30.5]} 19... Nxg3 {[%clk
0:01:50.5]} 20. Bxd8 {[%clk 0:01:30]} 20... Nxe2+ {[%clk 0:01:50.5]} 21. Nxe2
{[%clk 0:01:29.4]} 21... Rfxd8 {[%clk 0:01:48.6]} 22. Nf4 {[%clk 0:01:24.7]}
22... Nf8 {[%clk 0:01:48.2]} 23. Rfe1 {[%clk 0:01:23.8]} 23... Re8 {[%clk
0:01:43.5]} 24. Kf2 {[%clk 0:01:20.5]} 24... g5 {[%clk 0:01:40.2]} 25. Ne2
{[%clk 0:00:55]} 25... Kf7 {[%clk 0:01:38.2]} 26. Nc3 {[%clk 0:00:50.8]} 26...
Ne6 {[%clk 0:01:35.4]} 27. Rad1 {[%clk 0:00:48.7]} 27... Nf4 {[%clk 0:01:33.5]}
28. g3 {[%clk 0:00:45.9]} 28... Rxe1 {[%clk 0:01:32.6]} 29. Kxe1 {[%clk
0:00:46.4]} 29... Re8+ {[%clk 0:01:32]} 30. Kf2 {[%clk 0:00:44]} 30... Ne6
{[%clk 0:01:29.6]} 31. Ne2 {[%clk 0:00:41.5]} 31... Kf6 {[%clk 0:01:09.4]} 32.
Rd3 {[%clk 0:00:39.6]} 32... a4 {[%clk 0:01:04.1]} 33. Nc3 {[%clk 0:00:33.1]}
33... Ra8 {[%clk 0:01:04.2]} 34. Nd1 {[%clk 0:00:26.8]} 34... Ra5 {[%clk
0:01:00.9]} 35. Ne3 {[%clk 0:00:21.9]} 35... h5 {[%clk 0:00:56]} 36. Ke2 {[%clk
0:00:11.3]} 36... Rb5 {[%clk 0:00:54.7]} 37. Nd1 {[%clk 0:00:10.6]} 37... g6
{[%clk 0:00:37.6]} 38. Kd2 {[%clk 0:00:10.7]} 38... h4 {[%clk 0:00:26.7]} 39.
Kc2 {[%clk 0:00:07.2]} 39... Kf5 {[%clk 0:00:20.2]} 40. Nc3 {[%clk 0:00:05.9]}
40... Ra5 {[%clk 0:00:19.8]} 41. Ne2 {[%clk 0:00:04.8]} 41... Ra8 {[%clk
0:00:19.1]} 42. Re3 {[%clk 0:00:04]} 42... Rh8 {[%clk 0:00:18.1]} 43. Re5+
{[%clk 0:00:04.1]} 43... Kf6 {[%clk 0:00:18.2]} 44. Kd3 {[%clk 0:00:02.1]} 44...
Nxc5+ {[%clk 0:00:16.9]} 0-1

[Event "*** Titled Tuesday Blitz"]
[Site "Chess.com"]
[Date "2021.03.30"]
[Round "5"]
[White "BahadirOzen"]
[Black "scarabee43"]
[Result "1-0"]
[WhiteElo "2775"]
[BlackElo "2573"]
[TimeControl "180+1"]
[EndTime "10:55:52 PDT"]
[Termination "BahadirOzen won by resignation"]

1. g3 {[%clk 0:03:00.9]} 1... Nf6 {[%clk 0:02:59.6]} 2. Nf3 {[%clk 0:03:00.8]}
2... d6 {[%clk 0:02:57.6]} 3. d4 {[%clk 0:03:00.3]} 3... Nbd7 {[%clk 0:02:55.3]}
4. Bg2 {[%clk 0:03:00.5]} 4... e5 {[%clk 0:02:55.3]} 5. c4 {[%clk 0:03:00]} 5...
Be7 {[%clk 0:02:53.4]} 6. O-O {[%clk 0:03:00.4]} 6... O-O {[%clk 0:02:53.3]} 7.
Nc3 {[%clk 0:03:00.9]} 7... c6 {[%clk 0:02:51.4]} 8. Qc2 {[%clk 0:02:58.6]} 8...
Qc7 {[%clk 0:02:50]} 9. Rd1 {[%clk 0:02:58.9]} 9... Re8 {[%clk 0:02:48.4]} 10.
b3 {[%clk 0:02:51.4]} 10... Nf8 {[%clk 0:02:43.6]} 11. h3 {[%clk 0:02:48.7]}
11... Ng6 {[%clk 0:02:41]} 12. e4 {[%clk 0:02:46.2]} 12... Bf8 {[%clk
0:02:39.7]} 13. Bg5 {[%clk 0:02:44.2]} 13... Be7 {[%clk 0:02:32.2]} 14. Rac1
{[%clk 0:02:42.4]} 14... h6 {[%clk 0:02:28.7]} 15. Be3 {[%clk 0:02:42.1]} 15...
Be6 {[%clk 0:02:24.1]} 16. d5 {[%clk 0:02:38]} 16... Bd7 {[%clk 0:02:22.2]} 17.
dxc6 {[%clk 0:02:31.5]} 17... Bxc6 {[%clk 0:02:19.8]} 18. b4 {[%clk 0:02:24.3]}
18... a6 {[%clk 0:02:12.6]} 19. a3 {[%clk 0:02:21.1]} 19... Rac8 {[%clk
0:02:08.6]} 20. Qd3 {[%clk 0:02:20.3]} 20... Qb8 {[%clk 0:02:03.3]} 21. Nd2
{[%clk 0:02:14.4]} 21... Bf8 {[%clk 0:02:01]} 22. Nb3 {[%clk 0:02:12.9]} 22...
b6 {[%clk 0:01:54]} 23. Kh2 {[%clk 0:02:10.4]} 23... Nd7 {[%clk 0:01:48.2]} 24.
Nd5 {[%clk 0:02:09.9]} 24... Ne7 {[%clk 0:01:44.3]} 25. Nc3 {[%clk 0:02:01.4]}
25... Ng6 {[%clk 0:01:43.5]} 26. Kg1 {[%clk 0:02:00.3]} 26... Qa8 {[%clk
0:01:34]} 27. Rc2 {[%clk 0:01:55.4]} 27... Rc7 {[%clk 0:01:31.8]} 28. Nd5 {[%clk
0:01:53.3]} 28... Bxd5 {[%clk 0:01:31.5]} 29. cxd5 {[%clk 0:01:52.7]} 29... Rxc2
{[%clk 0:01:27.3]} 30. Qxc2 {[%clk 0:01:53.1]} 30... Rc8 {[%clk 0:01:27.8]} 31.
Qd3 {[%clk 0:01:52.5]} 31... Rc7 {[%clk 0:01:24.4]} 32. Bf1 {[%clk 0:01:51.5]}
32... Ne7 {[%clk 0:01:16.2]} 33. Rc1 {[%clk 0:01:35]} 33... Rxc1 {[%clk
0:01:13.3]} 34. Bxc1 {[%clk 0:01:34.8]} 34... f5 {[%clk 0:01:10.7]} 35. exf5
{[%clk 0:01:27.8]} 35... Qxd5 {[%clk 0:00:52.4]} 36. Qxd5+ {[%clk 0:01:26.1]}
36... Nxd5 {[%clk 0:00:52.7]} 37. Bxa6 {[%clk 0:01:23.7]} 37... Ne7 {[%clk
0:00:48.9]} 38. g4 {[%clk 0:01:22.1]} 38... Kf7 {[%clk 0:00:46.9]} 39. Bb5
{[%clk 0:01:19.3]} 39... Nf6 {[%clk 0:00:45.8]} 40. a4 {[%clk 0:01:19.7]} 40...
d5 {[%clk 0:00:42.5]} 41. a5 {[%clk 0:01:19.3]} 41... Nc8 {[%clk 0:00:41.1]} 42.
Ba6 {[%clk 0:01:13.1]} 42... Bxb4 {[%clk 0:00:36.3]} 43. Bxc8 {[%clk 0:01:12.3]}
43... bxa5 {[%clk 0:00:36.7]} 44. f3 {[%clk 0:01:01.7]} 44... a4 {[%clk
0:00:35]} 45. Na1 {[%clk 0:01:01.6]} 45... d4 {[%clk 0:00:28.3]} 46. Nc2 {[%clk
0:01:00]} 46... Bc3 {[%clk 0:00:25.5]} 47. Ba6 {[%clk 0:00:56.6]} 47... Nd7
{[%clk 0:00:24.5]} 48. Kf1 {[%clk 0:00:55.3]} 48... Nc5 {[%clk 0:00:23.3]} 49.
Bc4+ {[%clk 0:00:55.8]} 49... Ke8 {[%clk 0:00:19.8]} 50. Ke2 {[%clk 0:00:55.3]}
50... Kd7 {[%clk 0:00:19.9]} 51. Bb5+ {[%clk 0:00:53.5]} 51... Kd6 {[%clk
0:00:19.7]} 52. Ba3 {[%clk 0:00:53.9]} 52... Kd5 {[%clk 0:00:19.1]} 53. Bxc5
{[%clk 0:00:53.3]} 53... Kxc5 {[%clk 0:00:19.5]} 54. Bxa4 {[%clk 0:00:53.8]}
54... Kc4 {[%clk 0:00:20]} 55. Ne1 {[%clk 0:00:47.7]} 55... Bxe1 {[%clk
0:00:17.9]} 56. Kxe1 {[%clk 0:00:48.6]} 56... Kd3 {[%clk 0:00:18.1]} 57. Kf2
{[%clk 0:00:48.2]} 57... e4 {[%clk 0:00:16.7]} 58. Bb5+ {[%clk 0:00:41.4]} 58...
Kc3 {[%clk 0:00:14.6]} 59. fxe4 {[%clk 0:00:42.3]} 59... d3 {[%clk 0:00:14.9]}
60. Ke3 {[%clk 0:00:41.8]} 60... d2 {[%clk 0:00:15]} 61. Ba4 {[%clk 0:00:42.3]}
1-0